fUST/lending_fUST_20250705
["ID","MTS","AMOUNT","RATE_DAILY","PERIOD"]
[369678348,1751695866681,-460.0,0.00020606,2]
[369678349,1751695866690,-151.0,0.00020606,2]
[369678350,1751695866699,-151.0,0.00020606,2]
[369678351,1751695866708,-6234.37836541,0.00020665,2]
[369678352,1751695866717,-24389.77980625,0.00020665,2]
[369678353,1751695866726,-460.0,0.00020666,2]
[369678354,1751695866735,-460.0,0.00020666,2]
[369678355,1751695866744,-463.81196564,0.00020666,2]
[369678356,1751695866753,-460.0,0.00020666,2]
[369678357,1751695866762,-460.0,0.00020666,2]
[369678358,1751695866772,-460.0,0.00020666,2]
[369678359,1751695866781,-460.0,0.00020666,2]
[369678360,1751695866790,-460.0,0.00020666,2]
[369678361,1751695866799,-310.46638621,0.00020666,2]
[369678362,1751695866809,-460.0,0.00020666,2]
[369678363,1751695866818,-460.0,0.00020666,2]
[369678364,1751695866828,-460.0,0.00020666,2]
[369678365,1751695866837,-2083.45,0.00020666,2]
[369678366,1751695866846,-234.88,0.00020666,2]
[369678367,1751695866855,-460.0,0.00020666,2]
[369678368,1751695866864,-2255.94,0.00020666,2]
[369678369,1751695866873,-618.15,0.00020666,2]
[369678370,1751695866882,-268.28,0.00020666,2]
[369678371,1751695866891,-460.0,0.00020666,2]
[369678372,1751695866901,-460.0,0.00020666,2]
[369678373,1751695866913,-1022.31,0.00020666,2]
[369678374,1751695866922,-460.0,0.00020666,2]
[369678375,1751695866932,-605.63,0.00020666,2]
[369678376,1751695866941,-460.0,0.00020666,2]
[369678377,1751695866951,-2100.68,0.00020666,2]
[369678378,1751695866960,-2069.55,0.00020666,2]
[369678379,1751695867068,-460.0,0.00020666,2]
[369678380,1751695867078,-937.73,0.00020666,2]
[369678381,1751695867088,-460.0,0.00020666,2]
[369678382,1751695867097,-460.0,0.00020666,2]
[369678383,1751695867107,-460.0,0.00020666,2]
[369678384,1751695867116,-460.0,0.00020666,2]
[369678385,1751695867126,-841.29,0.00020666,2]
[369678386,1751695867135,-460.0,0.00020667,2]
[369678387,1751695867144,-440.02035294,0.00020667,2]
[369678388,1751695867154,-460.0,0.00020667,2]
[369678389,1751695867163,-460.0,0.00020667,2]
[369678390,1751695867172,-460.0,0.00020667,2]
[369678391,1751695867181,-462.80479555,0.00020667,2]
[369678392,1751695867191,-460.0,0.00020667,2]
[369678393,1751695867200,-460.0,0.00020667,2]
[369678394,1751695867209,-460.0,0.00020667,2]
[369678395,1751695867218,-461.37576427,0.00020667,2]
[369678396,1751695867228,-460.0,0.00020667,2]
[369678397,1751695867237,-462.35951816,0.00020667,2]
[369678398,1751695867246,-460.0,0.00020667,2]
[369678399,1751695867256,-460.0,0.00020667,2]
[369678400,1751695867265,-460.0,0.00020667,2]
[369678401,1751695867275,-460.0,0.00020667,2]
[369678402,1751695867284,-460.0,0.00020667,2]
[369678403,1751695867293,-460.0,0.00020667,2]
[369678404,1751695867302,-547.28,0.00020667,2]
[369678405,1751695867311,-460.0,0.00020667,2]
[369678406,1751695867320,-434.73971417,0.00020667,2]
[369678407,1751695867329,-460.0,0.00020667,2]
[369678408,1751695867339,-460.0,0.00020667,2]
[369678409,1751695867348,-460.0,0.00020667,2]
[369678410,1751695867358,-460.0,0.00020667,2]
[369678411,1751695867368,-460.0,0.00020667,2]
[369678412,1751695867378,-460.0,0.00020667,2]
[369678413,1751695867387,-460.0,0.00020667,2]
[369678414,1751695867396,-460.0,0.00020667,2]
[369678415,1751695867406,-460.0,0.00020667,2]
[369678416,1751695867415,-460.0,0.00020667,2]
[369678417,1751695867425,-460.0,0.00020667,2]
[369678418,1751695867434,-460.0,0.00020667,2]
[369678419,1751695867443,-460.0,0.00020667,2]
[369678420,1751695867452,-688.47,0.00020667,2]
[369678421,1751695867461,-589.48,0.00020667,2]
[369678422,1751695867470,-460.0,0.00020667,2]
[369678423,1751695867480,-460.0,0.00020667,2]
[369678424,1751695867490,-460.0,0.00020667,2]
[369678425,1751695867499,-236.33,0.00020667,2]
[369678426,1751695867509,-232.67,0.00020667,2]
[369678427,1751695867518,-460.0,0.00020667,2]
[369678428,1751695867527,-460.0,0.00020667,2]
[369678429,1751695867537,-460.0,0.00020667,2]
[369678430,1751695867546,-462.73951191,0.00020667,2]
[369678431,1751695867555,-460.0,0.00020667,2]
[369678432,1751695867564,-460.0,0.00020667,2]
[369678433,1751695867574,-560.31,0.00020667,2]
[369678434,1751695867583,-460.0,0.00020667,2]
[369678435,1751695867592,-460.0,0.00020667,2]
[369678436,1751695867602,-571.46,0.00020667,2]
[369678437,1751695867611,-460.0,0.00020667,2]
[369678438,1751695867621,-460.0,0.00020667,2]
[369678439,1751695867630,-460.0,0.00020667,2]
[369678440,1751695867640,-460.0,0.00020667,2]
[369678441,1751695867648,-383.4254604,0.00020667,2]
[369678442,1751695867658,-464.95925201,0.00020667,2]
[369678443,1751695867668,-460.0,0.00020667,2]
[369678444,1751695867677,-460.0,0.00020667,2]
[369678445,1751695867686,-1203.48,0.00020667,2]
[369678446,1751695867696,-460.0,0.00020667,2]
[369678447,1751695867706,-460.0,0.00020667,2]
[369678448,1751695867715,-460.0,0.00020667,2]
[369678449,1751695867724,-460.0,0.00020667,2]
[369678450,1751695867734,-441.4582448,0.00020667,2]
[369678451,1751695867744,-460.0,0.00020667,2]
[369678452,1751695867754,-419.10450867,0.00020667,2]
[369678453,1751695867763,-460.0,0.00020667,2]
[369678454,1751695867772,-570.38,0.00020667,2]
[369678455,1751695867782,-460.0,0.00020667,2]
[369678456,1751695867791,-460.0,0.00020667,2]
[369678457,1751695867801,-460.0,0.00020667,2]
[369678458,1751695867810,-597.71336004,0.00020667,2]
[369678459,1751695867820,-282.23,0.00020667,2]
[369678460,1751695867830,-460.0,0.00020667,2]
[369678461,1751695867841,-460.0,0.00020667,2]
[369678462,1751695867851,-460.0,0.00020667,2]
[369678463,1751695867862,-460.0,0.00020667,2]
[369678464,1751695867873,-462.81723263,0.00020667,2]
[369678465,1751695867883,-460.0,0.00020667,2]
[369678466,1751695867892,-460.0,0.00020667,2]
[369678467,1751695867903,-460.0,0.00020667,2]
[369678468,1751695867913,-460.0,0.00020667,2]
[369678469,1751695867923,-460.0,0.00020667,2]
[369678470,1751695867934,-798.91,0.00020667,2]
[369678471,1751695867943,-460.0,0.00020667,2]
[369678472,1751695867952,-460.0,0.00020667,2]
[369678473,1751695867961,-460.0,0.00020667,2]
[369678474,1751695867971,-460.0,0.00020667,2]
[369678475,1751695867980,-323.0356469,0.00020667,2]
[369678476,1751695867990,-460.0,0.00020667,2]
[369678477,1751695867999,-335.91592976,0.00020667,2]
[369678478,1751695868008,-464.24654429,0.00020667,2]
[369678479,1751695868017,-460.0,0.00020667,2]
[369678480,1751695868026,-392.27667566,0.00020667,2]
[369678481,1751695868035,-463.07785414,0.00020667,2]
[369678482,1751695868044,-460.0,0.00020667,2]
[369678483,1751695868054,-460.0,0.00020667,2]
[369678484,1751695868063,-460.0,0.00020668,2]
[369678485,1751695868072,-157.92011253,0.00020668,2]
[369678486,1751695868081,-460.0,0.00020668,2]
[369678487,1751695868091,-460.0,0.00020668,2]
[369678488,1751695868100,-415.84,0.00020668,2]
[369678489,1751695868111,-460.0,0.00020668,2]
[369678490,1751695868122,-460.0,0.00020668,2]
[369678491,1751695868132,-460.0,0.00020668,2]
[369678492,1751695868142,-460.0,0.00020668,2]
[369678493,1751695868153,-460.0,0.00020668,2]
[369678494,1751695868163,-460.0,0.00020668,2]
[369678495,1751695868173,-460.0,0.00020668,2]
[369678496,1751695868184,-846.69,0.00020668,2]
[369678497,1751695868194,-460.0,0.00020668,2]
[369678498,1751695868203,-460.0,0.00020668,2]
[369678499,1751695868213,-1500.0,0.00020668,2]
[369678500,1751695868222,-501.39702715,0.00020668,2]
[369678501,1751695868231,-500.0,0.00020668,2]
[369678502,1751695868241,-477.33110774,0.00020668,2]
[369678503,1751695868251,-500.0,0.00020668,2]
[369678504,1751695868261,-500.89602437,0.00020668,2]
[369678505,1751695868270,-460.0,0.00020678,2]
[369678506,1751695868279,-3406.79,0.00020678,2]
[369678507,1751695868289,-913.5,0.00020678,2]
[369678508,1751695868299,-460.0,0.00020678,2]
[369678509,1751695868308,-1252.52,0.00020678,2]
[369678510,1751695868317,-2801.10070984,0.00020689,2]
[369678511,1751695868326,-192.98149815,0.00020712,2]
[369678512,1751695868336,-460.0,0.00020765,2]
[369678513,1751695868345,-460.0,0.00020765,2]
[369678514,1751695868354,-460.0,0.00020765,2]
[369678515,1751695868363,-460.0,0.00020765,2]
[369678516,1751695868372,-1106.96,0.00020765,2]
[369678517,1751695868381,-485.38,0.00020765,2]
[369678518,1751695868390,-879.3,0.00020765,2]
[369678519,1751695868400,-473.0,0.00020765,2]
[369678520,1751695868409,-220.49,0.00020765,2]
[369678521,1751695868418,-1424.98,0.00020765,2]
[369678522,1751695868427,-460.0,0.00020765,2]
[369678523,1751695868436,-460.0,0.00020765,2]
[369678524,1751695868445,-460.0,0.00020765,2]
[369678525,1751695868456,-460.0,0.00020765,2]
[369678526,1751695868465,-460.0,0.00020765,2]
[369678527,1751695868474,-1352.83,0.00020765,2]
[369678528,1751695868484,-238.9,0.00020765,2]
[369678529,1751695868493,-3807.82,0.00020765,2]
[369678530,1751695868503,-151.0,0.00020765,2]
[369678531,1751695868512,-151.0,0.00020765,2]
[369678532,1751695868522,-151.0,0.00020765,2]
[369678533,1751695868533,-460.0,0.00020766,2]
[369678534,1751695868542,-460.0,0.00020766,2]
[369678535,1751695868552,-356.88,0.00020766,2]
[369678536,1751695868561,-460.0,0.00020766,2]
[369678537,1751695868571,-460.0,0.00020766,2]
[369678538,1751695868581,-460.0,0.00020766,2]
[369678539,1751695868590,-460.0,0.00020766,2]
[369678540,1751695868600,-460.0,0.00020766,2]
[369678541,1751695868610,-460.0,0.00020766,2]
[369678542,1751695868619,-460.0,0.00020766,2]
[369678543,1751695868629,-460.0,0.00020766,2]
[369678544,1751695868638,-460.0,0.00020766,2]
[369678545,1751695868648,-504.13,0.00020766,2]
[369678546,1751695868657,-460.0,0.00020766,2]
[369678547,1751695868667,-460.0,0.00020766,2]
[369678548,1751695868676,-464.55768708,0.00020766,2]
[369678549,1751695868686,-460.0,0.00020766,2]
[369678550,1751695868695,-460.0,0.00020766,2]
[369678551,1751695868705,-595.02,0.00020766,2]
[369678552,1751695868714,-560.23865946,0.00020766,2]
[369678553,1751695868723,-364.59555588,0.00020766,2]
[369678554,1751695868735,-460.0,0.00020766,2]
[369678555,1751695868744,-460.0,0.00020766,2]
[369678556,1751695868753,-961.88,0.00020767,2]
[369678557,1751695868763,-463.05577914,0.00020768,2]
[369678558,1751695868773,-460.0,0.00020768,2]
[369678559,1751695868782,-460.0,0.00020768,2]
[369678560,1751695868791,-460.0,0.00020768,2]
[369678561,1751695868800,-460.0,0.00020768,2]
[369678562,1751695868810,-460.0,0.00020768,2]
[369678563,1751695868819,-460.0,0.00020768,2]
[369678564,1751695868828,-460.0,0.00020768,2]
[369678565,1751695868838,-460.0,0.00020768,2]
[369678566,1751695868847,-401.84623412,0.00020768,2]
[369678567,1751695868857,-460.0,0.00020768,2]
[369678568,1751695868865,-151.967779,0.00020768,2]
[369678569,1751695868875,-460.0,0.00020768,2]
[369678570,1751695868884,-462.48594329,0.00020768,2]
[369678571,1751695868894,-151.0,0.00020768,2]
[369678572,1751695868904,-460.0,0.00020768,2]
[369678573,1751695868916,-151.0,0.00020768,2]
[369678574,1751695868925,-151.0,0.00020768,2]
[369678575,1751695868934,-151.0,0.00020768,2]
[369678576,1751695868944,-151.0,0.00020768,2]
[369678577,1751695868954,-460.0,0.00020768,2]
[369678578,1751695868964,-460.0,0.00020768,2]
[369678579,1751695868973,-151.0,0.00020768,2]
[369678580,1751695868982,-151.0,0.00020768,2]
[369678581,1751695868992,-460.0,0.00020768,2]
[369678582,1751695869001,-151.0,0.00020768,2]
[369678583,1751695869010,-151.0,0.00020768,2]
[369678584,1751695869020,-151.0,0.00020768,2]
[369678585,1751695869029,-225.5,0.00020768,2]
[369678586,1751695869039,-460.0,0.00020768,2]
[369678587,1751695869053,-460.0,0.00020768,2]
[369678588,1751695869063,-151.0,0.00020768,2]
[369678589,1751695869073,-464.75569049,0.00020768,2]
[369678590,1751695869082,-516.75,0.00020768,2]
[369678591,1751695869091,-151.0,0.00020768,2]
[369678592,1751695869100,-151.0,0.00020768,2]
[369678593,1751695869110,-212.26,0.00020768,2]
[369678594,1751695869119,-460.0,0.00020768,2]
[369678595,1751695869128,-330.74,0.00020768,2]
[369678596,1751695869137,-217.458887,0.00020768,2]
[369678597,1751695869146,-217.458887,0.00020768,2]
[369678598,1751695869155,-158.510532,0.00020768,2]
[369678599,1751695869165,-158.510532,0.00020768,2]
[369678600,1751695869174,-485.90723113,0.00020768,2]
[369678601,1751695869183,-151.0,0.00020768,2]
[369678602,1751695869192,-502.79659212,0.00020768,2]
[369678603,1751695869201,-460.0,0.00020768,2]
[369678604,1751695869210,-460.0,0.00020768,2]
[369678605,1751695869219,-460.0,0.00020768,2]
[369678606,1751695869229,-379.43816817,0.00020768,2]
[369678607,1751695869239,-427.31,0.00020768,2]
[369678608,1751695869247,-288.86,0.00020768,2]
[369678609,1751695869256,-460.0,0.00020768,2]
[369678610,1751695869266,-151.0,0.00020768,2]
[369678611,1751695869275,-151.0,0.00020768,2]
[369678612,1751695869285,-524.57860669,0.00020768,2]
[369678613,1751695869295,-460.0,0.00020768,2]
[369678614,1751695869304,-460.0,0.00020768,2]
[369678615,1751695869314,-500.0,0.00020768,2]
[369678616,1751695869323,-501.17104194,0.00020768,2]
[369678617,1751695869332,-1007.92183751,0.00020768,2]
[369678618,1751695869342,-502.66655222,0.00020768,2]
[369678619,1751695869351,-500.98155234,0.00020768,2]
[369678620,1751695869361,-502.70062991,0.00020768,2]
[369678621,1751695869371,-460.0,0.00020769,2]
[369678622,1751695869380,-460.0,0.00020769,2]
[369678623,1751695869389,-460.0,0.00020769,2]
[369678624,1751695869399,-460.0,0.00020769,2]
[369678625,1751695869408,-1390.45,0.00020769,2]
[369678626,1751695869417,-460.0,0.00020769,2]
[369678627,1751695869427,-460.0,0.00020769,2]
[369678628,1751695869436,-182.51406748,0.00020777,2]
[369678629,1751695869445,-438.65616843,0.00020786,2]
[369678630,1751695869454,-332.79740925,0.00020788,2]
[369678631,1751695869463,-460.0,0.00020788,2]
[369678632,1751695869472,-460.0,0.00020788,2]
[369678633,1751695869482,-460.0,0.00020788,2]
[369678634,1751695869491,-460.0,0.00020788,2]
[369678635,1751695869500,-462.82276082,0.00020788,2]
[369678636,1751695869510,-508.73,0.00020788,2]
[369678637,1751695869519,-463.26016993,0.00020788,2]
[369678638,1751695869528,-460.0,0.00020788,2]
[369678639,1751695869538,-460.0,0.00020788,2]
[369678640,1751695869548,-460.0,0.00020788,2]
[369678641,1751695869557,-460.0,0.00020788,2]
[369678642,1751695869567,-299.52685989,0.00020788,2]
[369678643,1751695869577,-460.0,0.00020788,2]
[369678644,1751695869586,-151.0,0.000208,3]
[369678645,1751695869596,-168.0,0.00020855,2]
[369678646,1751695869606,-460.0,0.0002088,2]
[369678647,1751695869615,-460.0,0.0002088,2]
[369678648,1751695869742,-151.0,0.000209,4]
[369678649,1751695869752,-804.44622831,0.00020902,2]
[369678650,1751695869761,-1980.56,0.00020931,3]
[369678651,1751695869770,-990.28,0.00020931,3]
[369678652,1751695869779,-495.14,0.00020931,3]
[369678653,1751695869788,-800.0,0.00020931,2]
[369678654,1751695869798,-6724.84788811,0.00020939,2]
[369678655,1751695869808,-460.0,0.0002094,2]
[369678656,1751695869817,-442.31031078,0.0002094,2]
[369678657,1751695869826,-185.94722278,0.0002094,2]
[369678658,1751695869835,-460.0,0.0002094,2]
[369678659,1751695869844,-462.30226158,0.0002094,2]
[369678660,1751695869853,-506.89092991,0.0002094,2]
[369678661,1751695869862,-2083.45,0.0002094,2]
[369678662,1751695869872,-460.0,0.0002094,2]
[369678663,1751695869881,-2255.94,0.0002094,2]
[369678664,1751695869890,-618.15,0.0002094,2]
[369678665,1751695869899,-460.0,0.0002094,2]
[369678666,1751695869910,-460.0,0.0002094,2]
[369678667,1751695869919,-1022.31,0.0002094,2]
[369678668,1751695869928,-341.83,0.0002094,2]
[369678669,1751695869937,-605.63,0.0002094,2]
[369678670,1751695869948,-510.66,0.0002094,2]
[369678671,1751695869957,-2100.68,0.0002094,2]
[369678672,1751695869966,-2069.55,0.0002094,2]
[369678673,1751695869975,-460.0,0.0002094,2]
[369678674,1751695869984,-937.73,0.0002094,2]
[369678675,1751695869994,-460.0,0.0002094,2]
[369678676,1751695870003,-300.81,0.0002094,2]
[369678677,1751695870012,-460.0,0.0002094,2]
[369678678,1751695870021,-460.0,0.0002094,2]
[369678679,1751695870030,-841.29,0.0002094,2]
[369678680,1751695870040,-127857.75439241,0.00020941,2]
[369678681,1751695870048,-151.0,0.00020941,2]
[369678682,1751695870057,-151.0,0.00020941,2]
[369678683,1751695870067,-359.89239154,0.00020941,2]
[369678684,1751695870076,-151.0,0.00020941,2]
[369678685,1751695870085,-151.0,0.00020941,2]
[369678686,1751695870094,-515.05348742,0.00020941,2]
[369678687,1751695870103,-151.0,0.00020941,2]
[369678688,1751695870113,-260.204433,0.00020941,2]
[369678689,1751695870122,-463.08728124,0.00020941,2]
[369678690,1751695870131,-151.0,0.00020941,2]
[369678691,1751695870140,-151.447246,0.00020941,2]
[369678692,1751695870149,-151.0,0.00020941,2]
[369678693,1751695870158,-402.36,0.00020941,2]
[369678694,1751695870168,-462.84358409,0.00020941,2]
[369678695,1751695870177,-183.529365,0.00020941,2]
[369678696,1751695870185,-460.0,0.00020941,2]
[369678697,1751695870195,-151.0,0.00020941,2]
[369678698,1751695870204,-151.0,0.00020941,2]
[369678699,1751695870214,-151.0,0.00020941,2]
[369678700,1751695870224,-156.183734,0.00020941,2]
[369678701,1751695870233,-460.0,0.00020941,2]
[369678702,1751695870243,-151.0,0.00020941,2]
[369678703,1751695870251,-151.0,0.00020941,2]
[369678704,1751695870260,-151.0,0.00020941,2]
[369678705,1751695870270,-460.0,0.00020941,2]
[369678706,1751695870279,-547.28,0.00020941,2]
[369678707,1751695870288,-151.0,0.00020941,2]
[369678708,1751695870297,-151.0,0.00020941,2]
[369678709,1751695870307,-151.0,0.00020941,2]
[369678710,1751695870316,-460.0,0.00020941,2]
[369678711,1751695870325,-151.0,0.00020941,2]
[369678712,1751695870334,-261.862016,0.00020941,2]
[369678713,1751695870343,-261.862016,0.00020941,2]
[369678714,1751695870352,-151.0,0.00020941,2]
[369678715,1751695870361,-151.0,0.00020941,2]
[369678716,1751695870370,-460.0,0.00020941,2]
[369678717,1751695870380,-151.0,0.00020941,2]
[369678718,1751695870390,-460.0,0.00020941,2]
[369678719,1751695870399,-151.0,0.00020941,2]
[369678720,1751695870408,-460.0,0.00020941,2]
[369678721,1751695870418,-229.685727,0.00020941,2]
[369678722,1751695870427,-460.0,0.00020941,2]
[369678723,1751695870437,-460.0,0.00020941,2]
[369678724,1751695870445,-460.0,0.00020941,2]
[369678725,1751695870455,-460.0,0.00020941,2]
[369678726,1751695870466,-460.0,0.00020941,2]
[369678727,1751695870475,-460.0,0.00020941,2]
[369678728,1751695870485,-688.47,0.00020941,2]
[369678729,1751695870495,-460.0,0.00020941,2]
[369678730,1751695870503,-209.56,0.00020941,2]
[369678731,1751695870513,-242.738521,0.00020941,2]
[369678732,1751695870522,-242.738521,0.00020941,2]
[369678733,1751695870532,-151.0,0.00020941,2]
[369678734,1751695870542,-196.1,0.00020941,2]
[369678735,1751695870552,-460.0,0.00020941,2]
[369678736,1751695870562,-151.0,0.00020941,2]
[369678737,1751695870572,-460.0,0.00020941,2]
[369678738,1751695870581,-269.488442,0.00020941,2]
[369678739,1751695870590,-460.0,0.00020941,2]
[369678740,1751695870599,-269.488442,0.00020941,2]
[369678741,1751695870608,-460.0,0.00020941,2]
[369678742,1751695870618,-571.46,0.00020941,2]
[369678743,1751695870627,-367.10287075,0.00020941,2]
[369678744,1751695870636,-460.0,0.00020941,2]
[369678745,1751695870646,-460.0,0.00020941,2]
[369678746,1751695870655,-460.0,0.00020941,2]
[369678747,1751695870664,-1203.48,0.00020941,2]
[369678748,1751695870674,-231.82,0.00020941,2]
[369678749,1751695870684,-528.63768966,0.00020941,2]
[369678750,1751695870693,-209.252716,0.00020941,2]
[369678751,1751695870702,-460.0,0.00020941,2]
[369678752,1751695870712,-209.252716,0.00020941,2]
[369678753,1751695870721,-460.0,0.00020941,2]
[369678754,1751695870730,-460.0,0.00020941,2]
[369678755,1751695870740,-151.0,0.00020941,2]
[369678756,1751695870749,-490.54,0.00020941,2]
[369678757,1751695870758,-463.13612911,0.00020941,2]
[369678758,1751695870768,-460.0,0.00020941,2]
[369678759,1751695870776,-460.0,0.00020941,2]
[369678760,1751695870786,-460.0,0.00020941,2]
[369678761,1751695870795,-460.0,0.00020941,2]
[369678762,1751695870804,-397.92,0.00020941,2]
[369678763,1751695870814,-460.0,0.00020941,2]
[369678764,1751695870824,-460.0,0.00020941,2]
[369678765,1751695870833,-463.94215212,0.00020941,2]
[369678766,1751695870842,-460.0,0.00020941,2]
[369678767,1751695870851,-798.91,0.00020941,2]
[369678768,1751695870861,-460.0,0.00020941,2]
[369678769,1751695870871,-460.0,0.00020941,2]
[369678770,1751695870881,-460.0,0.00020941,2]
[369678771,1751695870890,-460.0,0.00020941,2]
[369678772,1751695870899,-460.0,0.00020941,2]
[369678773,1751695870913,-151.0,0.00020941,2]
[369678774,1751695870923,-460.0,0.00020941,2]
[369678775,1751695870932,-151.0,0.00020941,2]
[369678776,1751695870941,-151.0,0.00020941,2]
[369678777,1751695870951,-460.0,0.00020941,2]
[369678778,1751695870960,-460.0,0.00020941,2]
[369678779,1751695870969,-460.0,0.00020942,2]
[369678780,1751695870978,-460.0,0.00020942,2]
[369678781,1751695870989,-460.0,0.00020942,2]
[369678782,1751695871000,-319.83,0.00020942,2]
[369678783,1751695871009,-460.0,0.00020942,2]
[369678784,1751695871019,-460.0,0.00020942,2]
[369678785,1751695871028,-460.0,0.00020942,2]
[369678786,1751695871039,-151.0,0.00020942,2]
[369678787,1751695871048,-460.0,0.00020942,2]
[369678788,1751695871058,-153.384458,0.00020942,2]
[369678789,1751695871073,-460.0,0.00020942,2]
[369678790,1751695871084,-846.69,0.00020942,2]
[369678791,1751695871093,-460.0,0.00020942,2]
[369678792,1751695871102,-460.0,0.00020942,2]
[369678793,1751695871111,-215.0738,0.00020942,2]
[369678794,1751695871121,-460.0,0.00020952,2]
[369678795,1751695871130,-3406.79,0.00020952,2]
[369678796,1751695871139,-913.5,0.00020952,2]
[369678797,1751695871148,-1252.52,0.00020952,2]
[369678798,1751695871157,-800.0,0.00020968,2]
[369678799,1751695871166,-500.0,0.00020973,2]
[369678800,1751695871175,-500.33250968,0.00020973,2]
[369678801,1751695871184,-500.0,0.00020973,2]
[369678802,1751695871194,-153.44604918,0.00020973,2]
[369678803,1751695871203,-501.01013707,0.00020973,2]
[369678804,1751695871213,-500.0,0.00020973,2]
[369678805,1751695871222,-500.0,0.00020973,2]
[369678806,1751695871231,-198.38422728,0.00020973,2]
[369678807,1751695871241,-500.0,0.00020973,2]
[369678808,1751695871251,-500.0,0.00020973,2]
[369678809,1751695871260,-500.0,0.00020973,2]
[369678810,1751695871269,-500.0,0.00020973,2]
[369678811,1751695871279,-500.0,0.00020973,2]
[369678812,1751695871288,-500.06401457,0.00020973,2]
[369678813,1751695871296,-500.0,0.00020973,2]
[369678814,1751695871305,-500.0,0.00020973,2]
[369678815,1751695871314,-160.17681006,0.00020973,2]
[369678816,1751695871324,-500.0,0.00020973,2]
[369678817,1751695871333,-160.18323478,0.00020973,2]
[369678818,1751695871342,-537.63683102,0.00020973,2]
[369678819,1751695871351,-160.17041455,0.00020973,2]
[369678820,1751695871360,-418.77775538,0.00020973,2]
[369678821,1751695871370,-500.0,0.00020973,2]
[369678822,1751695871379,-500.0,0.00020973,2]
[369678823,1751695871388,-500.46752967,0.00020973,2]
[369678824,1751695871398,-500.0,0.00020973,2]
[369678825,1751695871408,-258.63629449,0.00020973,2]
[369678826,1751695871419,-500.0,0.00020973,2]
[369678827,1751695871428,-500.0,0.00020973,2]
[369678828,1751695871438,-500.0,0.00020973,2]
[369678829,1751695871447,-160.17556189,0.00020973,2]
[369678830,1751695871456,-160.17046381,0.00020973,2]
[369678831,1751695871465,-500.0,0.00020973,2]
[369678832,1751695871474,-290.34861444,0.00020973,2]
[369678833,1751695871484,-500.0,0.00020973,2]
[369678834,1751695871493,-500.0,0.00020973,2]
[369678835,1751695871503,-500.0,0.00020973,2]
[369678836,1751695871513,-500.0,0.00020973,2]
[369678837,1751695871521,-500.0,0.00020973,2]
[369678838,1751695871530,-523.61279501,0.00020973,2]
[369678839,1751695871540,-500.0,0.00020973,2]
[369678840,1751695871549,-160.17588646,0.00020973,2]
[369678841,1751695871558,-553.39917828,0.00020973,2]
[369678842,1751695871567,-600.0,0.00020973,2]
[369678843,1751695871577,-334.14478192,0.00020973,2]
[369678844,1751695871586,-500.0,0.00020973,2]
[369678845,1751695871595,-500.0,0.00020973,2]
[369678846,1751695871604,-500.0,0.00020973,2]
[369678847,1751695871613,-319.72374994,0.00020973,2]